fUSD/lending_fUSD_20251213
["ID","MTS","AMOUNT","RATE_DAILY","PERIOD"]
[398433988,1765650640021,-150.0,0.00017588,2]
[398433990,1765650640032,-150.0,0.00017588,2]
[398433992,1765650640042,-150.0,0.00017588,2]
[398433994,1765650640051,-287.24719378,0.00017588,2]
[398433995,1765650640061,-500.0,0.00017588,2]
[398433997,1765650640071,-150.0,0.00017588,2]
[398433999,1765650640085,-150.0,0.00017588,2]
[398434000,1765650640095,-150.0,0.00017588,2]
[398434001,1765650640106,-150.0,0.00017588,2]
[398434002,1765650640115,-150.0,0.00017588,2]
[398434003,1765650640127,-150.60890833,0.00017588,2]
[398434004,1765650640137,-168.0,0.00017599,2]
[398434005,1765650640146,-314.82668084,0.0001761,2]
[398434006,1765650640159,-300.0,0.0001762,2]
[398434007,1765650640169,-300.0,0.00017624,2]
[398434008,1765650640178,-300.0,0.0001763,2]
[398434009,1765650640188,-1000.0,0.00017638,2]
[398434010,1765650640198,-300.0,0.00017643,2]
[398434011,1765650640208,-300.0,0.00017645,2]
[398434012,1765650640218,-300.0,0.00017654,2]
[398434013,1765650640227,-300.0,0.00017672,2]
[398434014,1765650640237,-7740.78197029,0.00017675,2]
[398434015,1765650640248,-5102.16194991,0.00017686,2]
[398434016,1765650640257,-300.0,0.00017687,2]
[398434017,1765650640268,-238.73,0.00017687,2]
[398434018,1765650640278,-300.0,0.0001769,2]
[398434019,1765650640288,-234.54692659,0.00017691,2]
[398434020,1765650640298,-168.0,0.00017692,2]
[398434021,1765650640307,-300.0,0.00017695,2]
[398434022,1765650640317,-1000.0,0.00017698,2]
[398434023,1765650640326,-300.0,0.00017698,2]
[398434024,1765650640337,-300.0,0.00017712,2]
[398434025,1765650640347,-1000.0,0.00017715,2]
[398434026,1765650640358,-3201.861,0.00017716,2]
[398434027,1765650640368,-172.018,0.00017716,2]
[398434028,1765650640378,-300.0,0.00017723,2]
[398434030,1765650640388,-448.0,0.00017725,2]
[398434032,1765650640398,-500.0,0.00017725,2]
[398434034,1765650640408,-500.0,0.00017725,2]
[398434036,1765650640418,-500.0,0.00017725,2]
[398434037,1765650640429,-150.0,0.00017725,2]
[398434038,1765650640440,-500.0,0.00017725,2]
[398434039,1765650640449,-500.0,0.00017725,2]
[398434040,1765650640462,-500.0,0.00017725,2]
[398434041,1765650640473,-840.0,0.00017725,2]
[398434042,1765650640483,-500.0,0.00017725,2]
[398434043,1765650640493,-150.0,0.00017725,2]
[398434044,1765650640504,-500.0,0.00017725,2]
[398434045,1765650640513,-150.0,0.00017725,2]
[398434046,1765650640524,-150.0,0.00017725,2]
[398434047,1765650640533,-150.0,0.00017725,2]
[398434048,1765650640543,-500.0,0.00017725,2]
[398434049,1765650640553,-150.0,0.00017725,2]
[398434050,1765650640563,-150.0,0.00017725,2]
[398434051,1765650640573,-228.40381269,0.00017725,2]
[398434052,1765650640584,-211.93404787,0.00017725,2]
[398434053,1765650640594,-150.0,0.00017725,2]
[398434054,1765650640605,-300.0,0.00017729,2]
[398434055,1765650640615,-300.0,0.0001773,2]
[398434056,1765650640625,-500.0,0.00017733,2]
[398434057,1765650640635,-200.0,0.00017743,2]
[398434058,1765650640645,-300.0,0.00017748,2]
[398434059,1765650640655,-300.0,0.00017761,2]
[398434060,1765650640665,-300.0,0.00017761,2]
[398434061,1765650640676,-168.0,0.00017763,2]
[398434062,1765650640686,-300.0,0.00017765,2]
[398434063,1765650640697,-300.0,0.00017774,2]
[398434064,1765650640708,-1849.2077685,0.00017778,2]
[398434065,1765650640718,-12591.3462521,0.00017778,2]
[398434066,1765650640728,-300.0,0.00017785,2]
[398434067,1765650640738,-300.0,0.00017802,2]
[398434068,1765650640748,-300.0,0.00017804,2]
[398434069,1765650640758,-300.0,0.00017804,2]
[398434070,1765650640768,-300.0,0.00017806,2]
[398434071,1765650640778,-150.0,0.00017808,2]
[398434072,1765650640788,-3635.75082,0.0001781,2]
[398434073,1765650640798,-300.0,0.00017816,2]
[398434074,1765650640807,-919.21348581,0.00017836,2]
[398434075,1765650640816,-300.0,0.00017843,2]
[398434076,1765650640826,-500.0,0.00017844,2]
[398434077,1765650640836,-300.0,0.00017855,2]
[398434078,1765650640845,-448.0,0.00017862,2]
[398434079,1765650640855,-170.54059325,0.00017862,2]
[398434080,1765650640864,-500.0,0.00017862,2]
[398434081,1765650640874,-500.0,0.00017862,2]
[398434082,1765650640884,-169.00704215,0.00017862,2]
[398434083,1765650640894,-500.0,0.00017862,2]
[398434084,1765650640904,-500.0,0.00017862,2]
[398434085,1765650640914,-500.0,0.00017862,2]
[398434086,1765650640925,-840.0,0.00017862,2]
[398434087,1765650640935,-500.0,0.00017862,2]
[398434088,1765650640944,-150.0,0.00017862,2]
[398434089,1765650640954,-500.0,0.00017862,2]
[398434090,1765650640964,-150.0,0.00017862,2]
[398434091,1765650640973,-150.0,0.00017862,2]
[398434092,1765650640982,-500.0,0.00017862,2]
[398434093,1765650640992,-300.0,0.00017865,2]
[398434094,1765650641002,-300.0,0.00017869,2]
[398434095,1765650641011,-300.0,0.00017874,2]
[398434096,1765650641021,-165.71,0.00017877,2]
[398434097,1765650641031,-300.0,0.00017878,2]
[398434098,1765650641041,-300.0,0.00017881,2]
[398434099,1765650641051,-2687.9471974,0.00017885,2]
[398434100,1765650641061,-151.0,0.00017886,2]
[398434101,1765650641070,-3635.75082,0.00017886,2]
[398434102,1765650641083,-3635.75082,0.00017886,2]
[398434103,1765650641095,-500.0,0.0001789,2]
[398434104,1765650641105,-500.0,0.0001789,2]
[398434105,1765650641115,-500.0,0.0001789,2]
[398434106,1765650641126,-10000.0,0.00017898,2]
[398434107,1765650641136,-5000.0,0.00017898,2]
[398434108,1765650641147,-24122.7344651,0.000179,3]
[398434109,1765650641158,-625.51479315,0.000179,2]
[398434110,1765650641168,-481.04173315,0.000179,3]
[398434111,1765650641178,-3480.2304595,0.000179,2]
[398434112,1765650641188,-5102.16194991,0.000179,2]
[398434113,1765650641199,-1318.5429393,0.000179,2]
[398434114,1765650641209,-768.75065575,0.000179,2]
[398434115,1765650641514,-997.44183066,0.000179,2]
[398434116,1765650641523,-314.82668084,0.000179,2]
[398434117,1765650641533,-179.7815492,0.000179,2]
[398434118,1765650641543,-7740.78197029,0.000179,2]
[398434119,1765650641553,-12343.98961321,0.000179,2]
[398434120,1765650641563,-168.0,0.00017906,2]
[398434121,1765650641572,-3635.75082,0.0001794,2]
[398434122,1765650641582,-9205.3741214,0.00017943,2]
[398434123,1765650641593,-150.0,0.00017945,2]
[398434124,1765650641603,-190.0,0.00017954,2]
[398434125,1765650641614,-168.0,0.00017962,2]
[398434126,1765650641623,-152.0,0.00017967,2]
[398434127,1765650641633,-153.0,0.00017967,2]
[398434128,1765650641643,-153.0,0.00017967,2]
[398434129,1765650641652,-153.0,0.00017967,2]
[398434130,1765650641662,-153.0,0.00017967,2]
[398434131,1765650641671,-152.0,0.00017967,2]
[398434132,1765650641681,-152.0,0.00017967,2]
[398434133,1765650641690,-157.0,0.00017967,2]
[398434134,1765650641700,-152.0,0.00017967,2]
[398434135,1765650641709,-157.0,0.00017967,2]
[398434136,1765650641719,-152.0,0.00017967,2]
[398434137,1765650641728,-163.74369318,0.00017967,2]
[398434138,1765650641738,-152.0,0.00017967,2]
[398434139,1765650641747,-152.0,0.00017967,2]
[398434140,1765650641757,-152.0,0.00017967,2]
[398434141,1765650641767,-152.0,0.00017967,2]
[398434142,1765650641777,-152.0,0.00017967,2]
[398434143,1765650641787,-300.37633732,0.00017967,2]
[398434144,1765650641796,-152.0,0.00017967,2]
[398434145,1765650641806,-152.0,0.00017967,2]
[398434146,1765650641816,-151.16701834,0.00017967,2]
[398434147,1765650641826,-152.0,0.00017967,2]
[398434148,1765650641843,-152.0,0.00017967,2]
[398434149,1765650641853,-152.0,0.00017967,2]
[398434150,1765650641862,-152.0,0.00017967,2]
[398434151,1765650641871,-152.0,0.00017967,2]
[398434152,1765650641880,-152.0,0.00017967,2]
[398434153,1765650641890,-152.0,0.00017967,2]
[398434154,1765650641899,-152.0,0.00017967,2]
[398434155,1765650641908,-152.0,0.00017967,2]
[398434156,1765650641917,-152.0,0.00017967,2]
[398434157,1765650641926,-152.0,0.00017967,2]
[398434158,1765650641936,-152.0,0.00017967,2]
[398434159,1765650641945,-152.0,0.00017967,2]
[398434160,1765650641954,-152.0,0.00017967,2]
[398434161,1765650641963,-152.0,0.00017967,2]
[398434162,1765650641972,-152.0,0.00017967,2]
[398434163,1765650641981,-152.0,0.00017967,2]
[398434164,1765650641990,-152.0,0.00017967,2]
[398434165,1765650641999,-152.0,0.00017967,2]
[398434166,1765650642009,-152.0,0.00017967,2]
[398434167,1765650642019,-152.0,0.00017967,2]
[398434168,1765650642028,-152.0,0.00017967,2]
[398434169,1765650642037,-157.0,0.00017967,2]
[398434170,1765650642047,-157.0,0.00017967,2]
[398434171,1765650642056,-152.0,0.00017967,2]
[398434172,1765650642066,-157.0,0.00017967,2]
[398434173,1765650642075,-152.0,0.00017967,2]
[398434174,1765650642086,-152.0,0.00017967,2]
[398434175,1765650642096,-152.0,0.00017967,2]
[398434176,1765650642104,-153.0,0.00017967,2]
[398434177,1765650642114,-152.0,0.00017967,2]
[398434178,1765650642123,-153.0,0.00017967,2]
[398434179,1765650642134,-152.0,0.00017967,2]
[398434180,1765650642143,-153.0,0.00017967,2]
[398434181,1765650642152,-152.0,0.00017967,2]
[398434182,1765650642163,-153.0,0.00017967,2]
[398434183,1765650642173,-152.0,0.00017967,2]
[398434184,1765650642182,-153.0,0.00017967,2]
[398434185,1765650642191,-152.0,0.00017967,2]
[398434186,1765650642200,-153.0,0.00017967,2]
[398434187,1765650642209,-152.0,0.00017967,2]
[398434188,1765650642218,-152.0,0.00017967,2]
[398434189,1765650642228,-152.0,0.00017967,2]
[398434190,1765650642238,-152.0,0.00017967,2]
[398434191,1765650642247,-152.0,0.00017967,2]
[398434192,1765650642257,-152.0,0.00017967,2]
[398434193,1765650642267,-153.0,0.00017967,2]
[398434194,1765650642276,-153.0,0.00017967,2]
[398434195,1765650642286,-152.0,0.00017967,2]
[398434196,1765650642296,-153.0,0.00017967,2]
[398434197,1765650642307,-152.0,0.00017967,2]
[398434198,1765650642316,-153.0,0.00017967,2]
[398434199,1765650642326,-152.0,0.00017967,2]
[398434200,1765650642337,-153.0,0.00017967,2]
[398434201,1765650642347,-152.0,0.00017967,2]
[398434202,1765650642358,-153.0,0.00017967,2]
[398434203,1765650642369,-233.3764448,0.00017967,2]
[398434204,1765650642380,-212.60063327,0.00017967,2]
[398434205,1765650642391,-152.0,0.00017967,2]
[398434207,1765650642401,-152.0,0.00017967,2]
[398434209,1765650642412,-152.0,0.00017967,2]
[398434210,1765650642423,-152.0,0.00017967,2]
[398434211,1765650642433,-152.0,0.00017967,2]
[398434212,1765650642443,-152.0,0.00017967,2]
[398434213,1765650642455,-152.0,0.00017967,2]
[398434214,1765650642465,-152.0,0.00017967,2]
[398434215,1765650642475,-152.0,0.00017967,2]
[398434216,1765650642484,-244.85337538,0.00017967,2]
[398434217,1765650642495,-689.69261819,0.00017967,2]
[398434218,1765650642505,-157.0,0.00017967,2]
[398434219,1765650642514,-157.0,0.00017967,2]
[398434220,1765650642524,-258.828236,0.00017967,2]
[398434221,1765650642534,-151.0,0.00017967,2]
[398434222,1765650642544,-500.0,0.00017973,2]
[398434223,1765650642555,-500.0,0.00017973,2]
[398434224,1765650642564,-487.26788281,0.00017973,2]
[398434225,1765650642574,-500.0,0.00017973,2]
[398434226,1765650642584,-500.0,0.00017973,2]
[398434227,1765650642594,-503.84405186,0.00017973,2]
[398434228,1765650642603,-500.0,0.00017973,2]
[398434229,1765650642614,-500.0,0.00017973,2]
[398434230,1765650642623,-500.0,0.00017973,2]
[398434231,1765650642633,-500.0,0.00017973,2]
[398434232,1765650642643,-500.0,0.00017973,2]
[398434233,1765650642652,-500.0,0.00017973,2]
[398434234,1765650642662,-500.0,0.00017973,2]
[398434235,1765650642671,-500.0,0.00017973,2]
[398434236,1765650642681,-500.0,0.00017973,2]
[398434237,1765650642690,-500.0,0.00017973,2]
[398434238,1765650642700,-500.0,0.00017973,2]
[398434239,1765650642710,-500.0,0.00017973,2]
[398434240,1765650642720,-504.18794098,0.00017973,2]
[398434241,1765650642729,-500.0,0.00017973,2]
[398434242,1765650642739,-496.76934978,0.00017973,2]
[398434243,1765650642749,-500.0,0.00017973,2]
[398434244,1765650642758,-500.0,0.00017973,2]
[398434245,1765650642768,-505.36759797,0.00017973,2]
[398434246,1765650642778,-500.0,0.00017973,2]
[398434247,1765650642787,-500.0,0.00017973,2]
[398434248,1765650642797,-500.0,0.00017973,2]
[398434249,1765650642807,-615.22169004,0.00017973,2]
[398434250,1765650642817,-500.0,0.00017973,2]
[398434251,1765650642826,-500.0,0.00017973,2]
[398434252,1765650642835,-500.0,0.00017973,2]
[398434253,1765650642844,-151.0,0.00017973,2]
[398434254,1765650642854,-196.93257166,0.0001799,2]
[398434255,1765650642863,-196.93257166,0.0001799,2]
[398434256,1765650642872,-166.9,0.00017997,2]
[398434257,1765650642882,-448.0,0.00017999,2]
[398434258,1765650642891,-403.60065798,0.00017999,2]
[398434259,1765650642901,-500.0,0.00017999,2]
[398434260,1765650642911,-500.0,0.00017999,2]
[398434261,1765650642920,-500.0,0.00017999,2]
[398434262,1765650642930,-500.0,0.00017999,2]
[398434263,1765650642940,-840.0,0.00017999,2]
[398434264,1765650642949,-500.0,0.00017999,2]
[398434265,1765650642959,-150.0,0.00017999,2]
[398434266,1765650642968,-500.0,0.00017999,2]
[398434268,1765650642978,-150.0,0.00017999,2]
[398434270,1765650642986,-150.0,0.00017999,2]
[398434272,1765650642996,-350.0,0.00017999,2]
[398434274,1765650643007,-500.0,0.00017999,2]
[398434276,1765650643017,-2074.57086472,0.00017999,2]
[398434277,1765650643026,-500.0,0.00017999,2]
[398434278,1765650643036,-500.0,0.00017999,2]
[398434279,1765650643045,-151.0,0.00017999,2]
[398434280,1765650643055,-197.939892,0.00017999,2]
[398434281,1765650643064,-151.0,0.00017999,2]
[398434282,1765650643073,-151.0,0.00017999,2]
[398434283,1765650643086,-196.693319,0.00017999,2]
[398434284,1765650643100,-196.693319,0.00017999,2]
[398434285,1765650643109,-196.693319,0.00017999,2]
[398434286,1765650643120,-196.693319,0.00017999,2]
[398434287,1765650643131,-151.0,0.00017999,2]
[398434288,1765650643141,-151.0,0.00017999,2]
[398434289,1765650643150,-151.0,0.00017999,2]
[398434290,1765650643162,-151.0,0.00017999,2]
[398434291,1765650643173,-151.0,0.00017999,2]
[398434292,1765650643183,-151.0,0.00017999,2]
[398434293,1765650643192,-151.0,0.00017999,2]
[398434294,1765650643202,-151.0,0.00017999,2]
[398434295,1765650643212,-151.0,0.00017999,2]
[398434296,1765650643221,-150.0,0.00018,2]
[398434297,1765650643231,-150.00000001,0.00018,2]
[398434298,1765650643241,-150.0,0.00018,2]
[398434299,1765650643251,-150.0,0.00018,2]
[398434300,1765650643261,-150.0,0.00018,2]
[398434301,1765650643271,-150.0,0.00018,2]
[398434302,1765650643281,-644127.42837616,0.00018,2]
[398434303,1765650644587,-1220.18230104,0.00016295,2]
[398434304,1765650645010,-451.81769896,0.00016295,2]
[398434305,1765650645020,-742.0,0.00016327,2]
[398434306,1765650645030,-8745.0461424,0.00018,2]
[398434307,1765650645046,-855.31963117,0.00018,2]
[398434308,1765650645057,-278855.75572865,0.00018,2]
[398434309,1765650645068,-435.88463301,0.00018,2]
[398434310,1765650645080,-452.77190442,0.00018,2]
[398434311,1765650645097,-304.138816,0.00018,2]
[398434312,1765650645217,-1324.0,0.00017101,2]
[398434313,1765650645227,-500.0,0.00017185,2]
[398434314,1765650645237,-1130.77440431,0.0001741,2]
[398434315,1765650645248,-500.0,0.00017942,2]
[398434316,1765650645258,-219972.94330575,0.00018,2]
[398434317,1765650645271,-273.1,0.00018,2]
[398434318,1765650645283,-376.395,0.00018,2]
[398434319,1765650645294,-611.755986,0.00018,2]
[398434320,1765650645308,-657.2440584,0.00018,2]
[398434326,1765650645702,-647300.92275275,0.00018,2]
[398434327,1765650645717,-49512.73961268,0.00018,2]
[398434328,1765650645729,-23715.13499065,0.00018,2]
[398434335,1765650645852,-18781.62336762,0.00018,2]
[398434337,1765650645863,-8133.15208965,0.00018,2]
[398434341,1765650667696,281.3609,0.00015871,2]
[398434342,1765650687747,760000.0,0.00015871,2]
[398434343,1765650704096,1000.0,0.00015871,2]
[398434345,1765650709983,427.134,0.00015871,2]
[398434346,1765650722457,2500.0,0.00015871,2]
[398434357,1765651833042,-300.0,0.00015969,2]
[398434358,1765651833052,-300.0,0.00015969,2]
[398434359,1765651833062,-1200.0,0.00015969,2]
[398434360,1765651833071,-250.0,0.00015969,2]
[398434361,1765651833080,-195.0,0.0001597,2]
[398434362,1765651833090,-500.0,0.0001597,2]
[398434363,1765651833100,-500.0,0.0001597,2]
[398434364,1765651833110,-500.0,0.0001597,2]
[398434365,1765651833120,-222.22156466,0.0001597,2]
[398434366,1765651833129,-152.18799306,0.0001597,2]
[398434367,1765651833141,-347.81200694,0.0001597,2]
[398434368,1765651833151,-500.0,0.0001597,2]
[398434369,1765651833160,-500.0,0.0001597,2]
[398434370,1765651833170,-500.0,0.0001597,2]
[398434371,1765651833179,-121.48463255,0.0001597,2]
[398434372,1765651833194,-378.51536745,0.0001597,2]
[398434373,1765651833203,-500.0,0.0001597,2]
[398434374,1765651833213,-500.0,0.0001597,2]
[398434375,1765651833223,-250.0,0.0001603,2]
[398434376,1765651833232,-150.0,0.000162,2]
[398434377,1765651833241,-150.0,0.000162,2]
[398434378,1765651833251,-150.0,0.000162,2]
[398434379,1765651833260,-150.0,0.000162,2]
[398434380,1765651833270,-150.0,0.000162,2]
[398434381,1765651833279,-150.0,0.000162,2]
[398434382,1765651833289,-150.0,0.000162,2]
[398434383,1765651833298,-3220.03339737,0.00016421,2]
[398434384,1765651833309,-2225.9,0.00016421,2]
[398434385,1765651833325,-1014.02545008,0.00016421,2]
[398434386,1765651833340,-335.26580545,0.00016421,2]
[398434387,1765651833352,-16052.8753471,0.00016421,2]
[398434388,1765651833362,-296.58079431,0.00016549,2]
[398434389,1765651833371,-150.0,0.0001665,2]
[398434390,1765651833381,-151.55,0.00016654,2]
[398434391,1765651833390,-152.07,0.00016796,2]
[398434392,1765651833399,-150.0,0.000168,2]
[398434393,1765651833408,-550.98137195,0.00016849,2]
[398434397,1765651837770,-27.22787113,0.00016849,2]
[398434398,1765651837780,-300.0,0.00016849,2]
[398434399,1765651837790,-200.0,0.00016849,2]
[398434400,1765651837800,-344.81753355,0.00016849,2]
[398434401,1765651837810,-282.0,0.00016901,2]
[398434402,1765651837820,-362.943865,0.00016973,2]
[398434404,1765651837830,-500.0,0.00016973,2]
[398434406,1765651837839,-500.52668444,0.00016973,2]
[398434407,1765651837849,-500.0,0.00016973,2]
[398434409,1765651837858,-500.0,0.00016973,2]
[398434411,1765651837868,-500.0,0.00016973,2]
[398434413,1765651837878,-500.0,0.00016973,2]
[398434415,1765651837887,-500.0,0.00016973,2]
[398434417,1765651837897,-500.0,0.00016973,2]
[398434419,1765651837907,-500.0,0.00016973,2]
[398434420,1765651837916,-166.96872211,0.00016973,2]
[398434422,1765651837926,-500.0,0.00016973,2]
[398434424,1765651837935,-500.0,0.00016973,2]
[398434426,1765651837944,-500.0,0.00016973,2]
[398434427,1765651837953,-421.6135628,0.00016973,2]
[398434429,1765651837962,-500.0,0.00016973,2]
[398434431,1765651837971,-223.83121583,0.00016973,2]
[398434432,1765651837980,-500.0,0.00016973,2]
[398434434,1765651837990,-646.44,0.00016976,2]
[398434436,1765651837999,-500.0,0.00016976,2]
[398434438,1765651838008,-151.0,0.00016976,2]
[398434440,1765651838018,-500.0,0.00016976,2]
[398434442,1765651838027,-995.0,0.00016976,2]
[398434444,1765651838037,-500.0,0.00016976,2]
[398434446,1765651838047,-500.0,0.00016976,2]
[398434448,1765651838056,-236.06139835,0.00016976,2]
[398434450,1765651838068,-263.93860165,0.00016976,2]
[398434452,1765651838077,-291.28061523,0.00016976,2]
[398434453,1765651838087,-1000.0,0.00016976,2]
[398434455,1765651838097,-1000.0,0.00016976,2]
[398434457,1765651838106,-1000.0,0.00016976,2]
[398434458,1765651838115,-1000.0,0.00016976,2]
[398434460,1765651838124,-1000.0,0.00016976,2]
[398434462,1765651838134,-1000.0,0.00016976,2]
[398434464,1765651838143,-1000.0,0.00016976,2]
[398434466,1765651838152,-200.0,0.00016976,2]
[398434468,1765651838161,-1000.0,0.00016976,2]
[398434470,1765651838171,-1000.0,0.00016976,2]
[398434472,1765651838180,-1000.0,0.00016976,2]
[398434473,1765651838189,-1000.0,0.00016976,2]
[398434475,1765651838199,-1000.0,0.00016976,2]
[398434477,1765651838209,-216.52973342,0.00016976,2]
[398434479,1765651838219,-1000.0,0.00016976,2]
[398434481,1765651838229,-1000.0,0.00016976,2]
[398434483,1765651838239,-1000.0,0.00016976,2]
[398434485,1765651838248,-719.04747942,0.00016976,2]
[398434487,1765651838258,-574.12855637,0.00016976,2]
[398434489,1765651838267,-151.0,0.00016976,2]
[398434491,1765651838277,-151.0,0.00016976,2]
[398434492,1765651838286,-151.0,0.00016976,2]
[398434494,1765651838296,-151.0,0.00016976,2]
[398434496,1765651838305,-151.0,0.00016976,2]
[398434498,1765651838314,-300.0,0.00016976,2]
[398434500,1765651838323,-151.0,0.00016976,2]
[398434502,1765651838332,-151.0,0.00016976,2]
[398434504,1765651838342,-151.0,0.00016976,2]
[398434506,1765651838351,-151.0,0.00016976,2]
[398434507,1765651838361,-500.0,0.00016976,2]
[398434509,1765651838371,-524.1558371,0.00016985,2]
[398434511,1765651838381,-500.0,0.00016985,2]
[398434513,1765651838390,-500.0,0.00016985,2]
[398434515,1765651838400,-500.0,0.00016985,2]
[398434517,1765651838410,-265.47204742,0.00016985,2]
[398434519,1765651838419,-500.0,0.00016986,2]
[398434521,1765651838429,-19046.1,0.00016986,2]
[398434523,1765651838439,-250.0,0.00017,2]
[398434524,1765651838449,-2000.0,0.00017,2]
[398434525,1765651838458,-500.0,0.00017,5]
[398434526,1765651838467,-995.0,0.00017031,2]
[398434527,1765651838477,-481.04173315,0.00017053,2]
[398434528,1765651838487,-992.69,0.00017079,2]
[398434529,1765651838496,-995.0,0.00017086,2]
[398434530,1765651838506,-150.0,0.000171,2]
[398434531,1765651838516,-150.0,0.000171,2]
[398434532,1765651838526,-150.0,0.000171,2]
[398434533,1765651838536,-995.0,0.00017141,2]
[398434534,1765651838546,-995.0,0.00017196,2]
[398434535,1765651838555,-646.44,0.0001725,2]
[398434536,1765651838565,-500.0,0.0001725,2]
[398434537,1765651838575,-1046.0,0.00017251,2]
[398434538,1765651838585,-226.18345714,0.00017257,2]
[398434539,1765651838596,-500.0,0.0001726,2]
[398434540,1765651838606,-3450.0,0.00017314,2]
[398434541,1765651838616,-611.0,0.00017314,2]
[398434542,1765651838626,-1606.0,0.00017314,2]
[398434543,1765651838635,-1324.0,0.00017314,2]
[398434544,1765651838646,-1261.0,0.00017314,2]
[398434545,1765651838655,-642.0,0.00017314,2]
[398434546,1765651838665,-1196.0,0.00017314,2]
[398434547,1765651838674,-910.0,0.00017314,2]
[398434548,1765651838684,-563.0,0.00017314,2]
[398434549,1765651838694,-150.0,0.00017314,2]
[398434550,1765651838704,-2426.0,0.00017314,2]
[398434551,1765651838713,-150.0,0.000174,2]
[398434552,1765651838723,-420.0,0.0001746,2]
[398434553,1765651838733,-420.0,0.0001746,2]
[398434554,1765651838742,-2500.0,0.0001749,2]
[398434555,1765651838754,-2500.0,0.0001749,2]
[398434556,1765651838764,-2500.0,0.0001749,2]
[398434557,1765651838774,-2500.0,0.0001749,2]
[398434558,1765651838784,-2500.0,0.0001749,2]
[398434559,1765651838795,-300.0,0.0001749,2]
[398434560,1765651839223,-300.0,0.0001749,2]
[398434561,1765651839233,-300.0,0.0001749,2]
[398434562,1765651839242,-300.0,0.0001749,2]
[398434563,1765651839252,-300.0,0.0001749,2]
[398434564,1765651839261,-1000.0,0.00017521,2]
[398434565,1765651839271,-1000.0,0.00017521,2]
[398434566,1765651839280,-1000.0,0.00017521,2]
[398434567,1765651839289,-646.44,0.00017524,2]
[398434568,1765651839298,-270.53619862,0.00017524,2]
[398434569,1765651839307,-500.0,0.00017524,2]
[398434570,1765651839317,-500.0,0.00017534,2]
[398434571,1765651839326,-1680.0,0.00017548,2]
[398434572,1765651839335,-150.0,0.0001755,2]
[398434573,1765651839344,-195.0,0.00017566,2]
[398434574,1765651839354,-250.0,0.00017566,2]
[398434575,1765651839363,-167.14674989,0.00017604,2]
[398434576,1765651839373,-172.312,0.00017624,2]
[398434577,1765651839382,-3413.907,0.00017624,2]
[398434578,1765651839392,-1655.10415935,0.0001764,2]
[398434579,1765651839401,-1628.91162981,0.00017652,2]
[398434580,1765651839410,-500.0,0.00017671,2]
[398434581,1765651839420,-150.0,0.00017671,2]
[398434582,1765651839429,-500.0,0.00017671,2]
[398434583,1765651839438,-150.0,0.00017671,2]
[398434584,1765651839447,-150.0,0.00017671,2]
[398434585,1765651839456,-500.0,0.00017671,2]
[398434586,1765651839465,-500.0,0.00017671,2]
[398434587,1765651839474,-150.0,0.00017671,2]
[398434588,1765651839483,-500.0,0.00017671,2]